{"text_format":"2","workbook":"xlsx","n_sheets":1,"sheets":["Plan1"],"not_rendered":{"charts":0,"images":2,"macros":0,"external_links":0,"defined_names":0,"comments":0,"pivot_tables":0},"unopened":[],"bounds":{"document_bytes":16777216,"sheet_cells":100000,"run_cost":"one","rows_first":2000,"rows_last":500,"rows_between":2000,"halvings":0,"cell_chars":16384,"cell_head_chars":4096},"cells_cut":0,"cells_raw":0,"read":"whole","date_system":"1900"}

{"sheet":"Plan1","index":0,"n_rows":83,"n_cols":4,"rows_kept":83,"cut":false,"hidden":false,"merged":[[82,0,82,3],[0,0,0,3],[1,0,1,3],[2,0,2,3],[3,1,3,3],[4,0,4,3],[47,0,47,3],[28,0,28,3]]}
["UNIVERSIDADE FEDERAL DE ALAGOAS\nPRÓ-REITORIA DE PESQUISA E PÓS-GRADUAÇÃO \nPNPD/CAPES - PPGCF/UFAL\n"]
["SELEÇÃO PROGRAMA NACIONAL DE PÓS-DOUTORADO – PNPD/CAPES 2013\nPROGRAMA DE PÓS-GRADUAÇÃO EM CIÊNCIAS FARMACÊUTICAS - PPGCF/UFAL"]
["BAREMA"]
["NOME DO CANDIDATO:"]
["Tabela 1 - Atividades de Pesquisa nos anos: 2010-2011-2012-2013"]
["Item Avaliado ","Pontuação","Quantidade ","Total"]
["Supervisão de Pós-Doutorado concluída",3,null,{"$f":"B7*C7","v":0}]
["Supervisão de Pós-Doutorado em andamento",2,null,{"$f":"B8*C8","v":0}]
["Atuação como Revisor Ad Hoc para avaliação de trabalhos submetidos em periódicos científicos Qualis CAPES (máximo 2 atuações)",0.5,null,0]
["Consultoria Ad Hoc em agências de fomento nacionais e internacionais (máximo 2 consultorias)",1,null,0]
["Consultoria Ad Hoc para avaliação de projetos e relatórios de pesquisa do PIBIC (máximo 4 consultorias)",0.5,null,0]
["Coordenação de projeto de pesquisa ou desenvolvimento tecnológico cadastrado na Plataforma Lattes (máximo 2 projetos)",2,null,0]
["Participação em projeto de pesquisa ou desenvolvimento tecnológico cadastrado na Plataforma Lattes, exceto quando coordenador. (máximo 2 participações)",0.5,null,0]
["Participação em Banca de Doutorado (exceto quando orientador e coorientador) (máximo 3 por ano).",2,null,0]
["Participação em Banca de qualificação de Doutorado (exceto quando orientador e coorientador) (máximo 3 por ano).",1,null,0]
["Participação em Banca de Mestrado (exceto quando orientador e coorientador) (máximo 3 por ano).",1,null,0]
["Participação em Banca de qualificação de Mestrado (exceto quando orientador e coorientador) (máximo 3 por ano).",0.5,null,0]
["Participação em Banca de Trabalho de Conclusão de Curso de Graduação (máximo 3 por ano-exceto quando orientador)",0.25,null,0]
["Palestra, conferência e participação em mesa redonda em evento internacional (máximo 3 por ano)",1,null,0]
["Palestra, conferência e participação em mesa redonda em evento nacional. (máximo 3 por ano)",0.75,null,0]
["Coordenação individual de ciclo de palestras ou de estudos e de oficinas em evento internacional (máximo 3 por ano)",1,null,0]
["Coordenação individual de ciclo de palestras ou de estudos e de oficinas em evento nacional. (máximo 3 por ano)",0.75,null,0]
["Participação em coordenação coletiva de ciclo de palestras ou de estudos e de oficinas em evento internacional (máximo 3 por ano)",0.5,null,0]
["Participação em coordenação coletiva de ciclo de palestras ou de estudos e de oficinas em evento nacional.(máximo 3 por ano)",0.25,null,0]
["Coordenação de eventos de cunho científico de âmbito internacional",1.5,null,0]
["Coordenação de eventos científicos de âmbito nacional",1,null,0]
["Subtotal",null,null,{"$f":"SUM(D7:D26)","v":0}]
[]
["Tabela 2 – Orientações nos anos: 2010-2011-2012-2013"]
["Item Avaliado","Pontuação","Quantidade","Total"]
["Tese de Doutorado concluída – Orientação",4,null,{"$f":"B31*C31","v":0}]
["Tese de Doutorado concluída – Coorientação",2,null,{"$f":"B32*C32","v":0}]
["Tese de Doutorado em andamento – Orientação",2,null,0]
["Tese de Doutorado em andamento – Coorientação",1,null,0]
["Dissertação de Mestrado concluída – Orientação",3,null,0]
["Dissertação de Mestrado concluída – Coorientação",1.5,null,0]
["Dissertação de Mestrado em andamento -  Orientação",1.5,null,0]
["Dissertação de Mestrado em andamento – Coorientação",0.75,null,0]
["Monografia de curso de especialização concluída na instituição (máximo de 2 por ano)",0.75,null,0]
["Monografia de curso de especialização em andamento na instituição (máximo de 2 por ano)",0.5,null,0]
["Monografia de curso de Residência concluída na instituição (máximo de 2 por ano)",1,null,0]
["Monografia de curso de Residência em andamento (máximo de 2 por ano)",0.75,null,0]
["Trabalho de Conclusão de Curso de Graduação concluída e/ou em andamento (máximo de 3 por ano)",0.5,null,0]
["Iniciação Científica, Acadêmica ou Tecnológica (máximo de 4 por ano) concluída e/ou em andamento",1,null,0]
["PET (Máximo de 1 por ano) concluída e/ou em andamento",1,null,0]
["Subtotal",null,null,{"$f":"SUM(D31:D45)","v":0}]
[]
["Tabela 3 - Titulação, Produção Científica, Artística, Técnica e Cultural nos anos: 2010-2011-2012-2013"]
["Item Avaliado","Pontuação","Quantidade","Total"]
["Pós-Doutorado (máximo de 1 por ano)",3,null,{"$f":"B50*C50","v":0}]
["Doutorado",10,null,{"$f":"B51*C51","v":0}]
["Mestrado",5,null,{"$f":"B52*C52","v":0}]
["Especialização ou Aperfeiçoamento na área (180 h)  (máximo de 2 cursos)",2,null,{"$f":"B53*C53","v":0}]
["Professor de programa de pós-graduação stricto sensu (apenas uma vez)",8,null,{"$f":"B54*C54","v":0}]
["Professor de programa de pós-graduação lato sensu na instituição (apenas uma vez)",2,null,{"$f":"B55*C55","v":0}]
["Artigo completo, publicado em periódico especializado de circulação internacional com ISSN ou DOI",6,null,0]
["Artigo completo, publicado em periódico especializado de circulação nacional com ISSN",3,null,0]
["Resumo de artigo em periódico especializado de circulação internacional com ISSN",1.5,null,0]
["Resumo de artigo em periódico especializado de circulação internacional Expandido com ISSN",1.7,null,0]
["Resumo de artigo em periódico especializado de circulação nacional com ISSN",1,null,0]
["Resumo de artigo em periódico especializado de circulação nacional Expandido com ISSN",1.2,null,0]
["Artigo de opinião em jornal ou revista não especializada na área de conhecimento (máximo 2 por ano)",0.25,null,0]
["Livro publicado por editora com ISBN (organização) na área de conhecimento",2,null,0]
["Livro publicado por editora com ISBN (texto integral) na área de conhecimento",5,null,0]
["Livro publicado por editora com ISBN (capítulo) na área de conhecimento",2,null,0]
["Trabalho completo em anais de eventos científicos de âmbito internacional, em qualquer forma de publicação (máximo de 4 por ano)",2,null,0]
["Trabalho completo em anais de eventos científicos de âmbito nacional, em qualquer forma de publicação (máximo de 4 por ano)",1.5,null,0]
["Resumo de trabalho em anais de eventos científicos de âmbito internacional, em qualquer forma de publicação Expandida (máximo de 4 por ano)",1.2,null,0]
["Resumo de trabalho em anais de eventos científicos de âmbito nacional, em qualquer forma de publicação Expandida (máximo de 4 por ano)",0.7,null,0]
["Resumo de trabalho em anais de eventos científicos de âmbito internacional, em qualquer forma de publicação (máximo de 4 por ano)",1,null,0]
["Resumo de trabalho em anais de eventos científicos de âmbito nacional, em qualquer forma de publicação (máximo de 4 por ano)",0.5,null,0]
["Tradução de livro publicado por editora com corpo editorial",2,null,0]
["Apresentação de trabalho em evento científico de âmbito internacional",1,null,0]
["Apresentação de trabalho em evento científico de âmbito nacional",0.5,null,0]
["Desenvolvimento de produto (aparelho, instrumento, equipamento, fármacos e similares) exceto patente",2,null,0]
["Desenvolvimento de técnica (analítica, instrumental, pedagógica, processual, terapêutica) exceto patente",2,null,0]
["Editoria (edição, editoração) de periódicos científicos com ISSN",2,null,0]
["Patente ",6,null,0]
["Relatório Técnico de Projeto de Pesquisa com financiamento público (exceto consultoria)(máximo 6 pontos)",1,null,0]
["Subtotal",null,null,{"$f":"SUM(D50:D79)","v":0}]
[]
["TOTAL GERAL",null,null,{"$f":"SUM(D80+D46+D27)","v":0}]
["ASSINATURA DO CANDIDATO"]